fUSD/lending_fUSD_20240428
["ID","MTS","AMOUNT","RATE_DAILY","PERIOD"]
[323781911,1714289445267,-500.0,0.00016438,2]
[323781912,1714289445349,-541.52,0.00016438,2]
[323781913,1714289445367,-500.0,0.00016438,2]
[323781914,1714289445376,-500.0,0.00016438,2]
[323781915,1714289445386,-1234.96,0.00016438,2]
[323781916,1714289445395,-1665.19,0.00016438,2]
[323781917,1714289445404,-505.24472314,0.00016438,2]
[323781918,1714289445413,-916.13,0.00016438,2]
[323781919,1714289445422,-1093.82,0.00016438,2]
[323781920,1714289445434,-500.0,0.00016438,2]
[323781921,1714289445445,-500.0,0.00016438,2]
[323781922,1714289445454,-500.0,0.00016438,2]
[323781923,1714289445463,-500.0,0.00016438,2]
[323781924,1714289445472,-500.0,0.00016438,2]
[323781925,1714289445481,-500.0,0.00016438,2]
[323781926,1714289445490,-500.0,0.00016438,2]
[323781927,1714289445499,-500.0,0.00016438,2]
[323781928,1714289445508,-500.0,0.00016438,2]
[323781929,1714289445517,-500.0,0.00016438,2]
[323781930,1714289445527,-1101.11,0.00016438,2]
[323781931,1714289445536,-500.0,0.00016438,2]
[323781932,1714289445545,-1588.32,0.00016438,2]
[323781933,1714289445556,-937.44,0.00016438,2]
[323781934,1714289445567,-1139.56,0.00016438,2]
[323781935,1714289445576,-500.0,0.00016438,2]
[323781936,1714289445586,-500.0,0.00016438,2]
[323781937,1714289445595,-500.0,0.00016438,2]
[323781938,1714289445605,-1376.39,0.00016438,2]
[323781939,1714289445615,-584.00253524,0.00016438,2]
[323781940,1714289445624,-1529.95,0.00016438,2]
[323781941,1714289445633,-500.0,0.00016438,2]
[323781942,1714289445643,-500.0,0.00016438,2]
[323781943,1714289445652,-572.29282006,0.00016438,2]
[323781944,1714289445662,-500.0,0.00016438,2]
[323781945,1714289445672,-500.0,0.00016438,2]
[323781946,1714289445681,-500.0,0.00016438,2]
[323781947,1714289445691,-500.0,0.00016438,2]
[323781948,1714289445700,-507.03,0.00016438,2]
[323781949,1714289445709,-500.0,0.00016438,2]
[323781950,1714289445718,-500.0,0.00016438,2]
[323781951,1714289445728,-973.03,0.00016438,2]
[323781952,1714289445737,-500.0,0.00016438,2]
[323781953,1714289445746,-504.65,0.00016438,2]
[323781954,1714289445756,-551.39,0.00016438,2]
[323781955,1714289445765,-1516.33,0.00016438,2]
[323781956,1714289445774,-511.8,0.00016438,2]
[323781957,1714289445784,-500.0,0.00016438,2]
[323781958,1714289445793,-642.35,0.00016438,2]
[323781959,1714289445802,-500.0,0.00016438,2]
[323781960,1714289445811,-500.0,0.00016438,2]
[323781961,1714289445820,-500.0,0.00016438,2]
[323781962,1714289445830,-529.44,0.00016438,2]
[323781963,1714289445840,-500.0,0.00016438,2]
[323781964,1714289445849,-500.0,0.00016438,2]
[323781965,1714289445858,-500.0,0.00016438,2]
[323781966,1714289445869,-1139.62,0.00016438,2]
[323781967,1714289445878,-888.26,0.00016438,2]
[323781968,1714289445887,-1329.57,0.00016438,2]
[323781969,1714289445897,-1422.8,0.00016438,2]
[323781970,1714289445906,-501.81,0.00016438,2]
[323781971,1714289445915,-686.86,0.00016438,2]
[323781972,1714289445948,-500.0,0.00016438,2]
[323781973,1714289445957,-500.0,0.00016438,2]
[323781974,1714289445966,-500.0,0.00016438,2]
[323781975,1714289445975,-543.69,0.00016438,2]
[323781976,1714289445984,-566.14,0.00016438,2]
[323781977,1714289445993,-1656.72,0.00016438,2]
[323781978,1714289446002,-1031.89,0.00016438,2]
[323781979,1714289446011,-500.0,0.00016438,2]
[323781980,1714289446020,-500.0,0.00016438,2]
[323781981,1714289446029,-500.0,0.00016438,2]
[323781982,1714289446039,-590.78,0.00016438,2]
[323781983,1714289446048,-500.0,0.00016438,2]
[323781984,1714289446057,-321.76219254,0.00016438,2]
[323781985,1714289446066,-500.0,0.00016438,2]
[323781986,1714289446075,-500.0,0.00016438,2]
[323781987,1714289446084,-1449.85,0.00016438,2]
[323781988,1714289446093,-500.0,0.00016438,2]
[323781989,1714289446103,-746.16,0.00016438,2]
[323781991,1714289446114,-886.13,0.00016438,2]
[323781992,1714289446123,-500.0,0.00016438,2]
[323781994,1714289446142,-487.36675307,0.00016438,2]
[323781996,1714289446150,-500.0,0.00016438,2]
[323781998,1714289446160,-500.02986009,0.00016438,2]
[323781999,1714289446169,-643.46207903,0.00016438,2]
[323782000,1714289446178,-500.0,0.00016438,2]
[323782001,1714289446188,-2000.0,0.00016438,2]
[323782002,1714289446197,-1646.96,0.00016438,2]
[323782003,1714289446207,-528.55,0.00016438,2]
[323782004,1714289446216,-500.0,0.00016438,2]
[323782005,1714289446225,-1488.12,0.00016438,2]
[323782006,1714289446234,-1717.98,0.00016438,2]
[323782007,1714289446243,-1678.33,0.00016438,2]
[323782008,1714289446252,-396.39858724,0.00016438,2]
[323782009,1714289446261,-502.4680514,0.00016438,2]
[323782010,1714289446271,-519.88074694,0.00016438,2]
[323782011,1714289446280,-724.95,0.00016438,2]
[323782012,1714289446289,-500.0,0.00016438,2]
[323782013,1714289446298,-587.9,0.00016438,2]
[323782014,1714289446307,-500.35718249,0.00016438,2]
[323782015,1714289446316,-500.0,0.00016438,2]
[323782016,1714289446325,-500.0,0.00016438,2]
[323782017,1714289446334,-500.0,0.00016438,2]
[323782018,1714289446343,-2154.22,0.00016438,2]
[323782019,1714289446353,-500.0,0.00016438,2]
[323782020,1714289446367,-500.0,0.00016438,2]
[323782021,1714289446376,-533.57,0.00016438,2]
[323782022,1714289446387,-711.05,0.00016438,2]
[323782023,1714289446399,-508.202832,0.00016438,2]
[323782024,1714289446407,-500.0,0.00016438,2]
[323782025,1714289446418,-500.0,0.00016438,2]
[323782026,1714289446428,-500.0,0.00016438,2]
[323782027,1714289446438,-426.41598988,0.00016438,2]
[323782028,1714289446449,-503.94893769,0.00016438,2]
[323782029,1714289446457,-500.0,0.00016438,2]
[323782030,1714289446467,-500.0,0.00016438,2]
[323782031,1714289446476,-1018.32,0.00016438,2]
[323782032,1714289446485,-500.0,0.00016438,2]
[323782033,1714289446494,-500.0,0.00016438,2]
[323782034,1714289446503,-500.0,0.00016438,2]
[323782035,1714289446513,-511.08629216,0.00016438,2]
[323782036,1714289446524,-1117.28,0.00016438,2]
[323782037,1714289446534,-796.91,0.00016438,2]
[323782038,1714289446545,-500.0,0.00016438,2]
[323782039,1714289446556,-447.06926234,0.00016438,2]
[323782040,1714289446566,-574.50990889,0.00016438,2]
[323782041,1714289446575,-500.0,0.00016438,2]
[323782042,1714289446585,-500.0,0.00016438,2]
[323782043,1714289446594,-500.0,0.00016438,2]
[323782044,1714289446603,-1449.68,0.00016438,2]
[323782045,1714289446612,-167.33843038,0.00016438,2]
[323782046,1714289446623,-500.0,0.00016438,2]
[323782047,1714289446632,-1614.92,0.00016438,2]
[323782048,1714289446641,-1107.34,0.00016438,2]
[323782049,1714289446650,-1587.53,0.00016438,2]
[323782050,1714289446659,-500.0,0.00016438,2]
[323782051,1714289446668,-500.0,0.00016438,2]
[323782052,1714289446677,-500.0,0.00016438,2]
[323782053,1714289446687,-500.0,0.00016438,2]
[323782054,1714289446696,-500.0,0.00016438,2]
[323782055,1714289446706,-1308.67,0.00016438,2]
[323782056,1714289446715,-615.12,0.00016438,2]
[323782057,1714289446725,-500.0,0.00016438,2]
[323782058,1714289446734,-500.0,0.00016438,2]
[323782059,1714289446744,-500.0,0.00016438,2]
[323782060,1714289446756,-586.26,0.00016438,2]
[323782061,1714289446766,-500.0,0.00016438,2]
[323782062,1714289446775,-500.0,0.00016438,2]
[323782063,1714289446784,-515.79,0.00016438,2]
[323782064,1714289446793,-1214.22,0.00016438,2]
[323782065,1714289446802,-532.06,0.00016438,2]
[323782066,1714289446812,-644.06,0.00016438,2]
[323782067,1714289446821,-521.39,0.00016438,2]
[323782068,1714289446832,-500.0,0.00016438,2]
[323782069,1714289446843,-500.0,0.00016438,2]
[323782070,1714289446854,-567.64,0.00016438,2]
[323782071,1714289446864,-500.0,0.00016438,2]
[323782072,1714289446875,-1265.95,0.00016438,2]
[323782073,1714289446885,-500.0,0.00016438,2]
[323782074,1714289446895,-500.0,0.00016438,2]
[323782075,1714289446904,-500.0,0.00016438,2]
[323782076,1714289446914,-500.0,0.00016438,2]
[323782077,1714289446925,-500.0,0.00016438,2]
[323782078,1714289446935,-1224.88,0.00016438,2]
[323782079,1714289446946,-500.0,0.00016438,2]
[323782080,1714289446956,-502.4322608,0.00016438,2]
[323782081,1714289446966,-529.74,0.00016438,2]
[323782082,1714289446975,-609.27,0.00016438,2]
[323782083,1714289446985,-1422.89,0.00016438,2]
[323782084,1714289446994,-500.0,0.00016438,2]
[323782085,1714289447003,-529.3,0.00016438,2]
[323782086,1714289447012,-500.0,0.00016438,2]
[323782087,1714289447022,-761.87,0.00016438,2]
[323782088,1714289447031,-1231.91,0.00016438,2]
[323782089,1714289447040,-500.0,0.00016438,2]
[323782090,1714289447050,-678.06,0.00016438,2]
[323782091,1714289447059,-508.38,0.00016438,2]
[323782092,1714289447069,-861.31,0.00016438,2]
[323782093,1714289447078,-1823.81,0.00016438,2]
[323782094,1714289447087,-984.49,0.00016438,2]
[323782095,1714289447097,-500.0,0.00016438,2]
[323782096,1714289447106,-505.66632007,0.00016438,2]
[323782097,1714289447118,-500.0,0.00016438,2]
[323782098,1714289447127,-500.0,0.00016438,2]
[323782099,1714289447137,-500.0,0.00016438,2]
[323782100,1714289447147,-500.0,0.00016438,2]
[323782101,1714289447157,-682.49,0.00016438,2]
[323782102,1714289447166,-1098.84,0.00016438,2]
[323782103,1714289447176,-1408.68,0.00016438,2]
[323782104,1714289447186,-2507.28,0.00016438,2]
[323782105,1714289447195,-500.0,0.00016438,2]
[323782106,1714289447205,-3038.9,0.00016438,2]
[323782107,1714289447214,-1016.86,0.00016438,2]
[323782108,1714289447223,-1800.71,0.00016438,2]
[323782109,1714289447233,-500.0,0.00016438,2]
[323782110,1714289447243,-500.0,0.00016438,2]
[323782111,1714289447253,-2848.56,0.00016438,2]
[323782112,1714289447264,-549.98,0.00016438,2]
[323782113,1714289447274,-500.0,0.00016438,2]
[323782114,1714289447283,-500.0,0.00016438,2]
[323782115,1714289447293,-1274.67,0.00016438,2]
[323782116,1714289447302,-500.0,0.00016438,2]
[323782117,1714289447312,-2152.17,0.00016438,2]
[323782118,1714289447322,-947.78,0.00016438,2]
[323782119,1714289447331,-500.0,0.00016438,2]
[323782120,1714289447341,-500.0,0.00016438,2]
[323782121,1714289447351,-503.04686889,0.00016438,2]
[323782122,1714289447365,-1802.17,0.00016438,2]
[323782123,1714289447377,-500.0,0.00016438,2]
[323782124,1714289447386,-500.0,0.00016438,2]
[323782125,1714289447395,-659.85,0.00016438,2]
[323782126,1714289447406,-500.0,0.00016438,2]
[323782127,1714289447415,-505.29634276,0.00016438,2]
[323782128,1714289447425,-500.0,0.00016438,2]
[323782129,1714289447436,-1294.02,0.00016438,2]
[323782130,1714289447446,-500.0,0.00016438,2]
[323782131,1714289447457,-1590.96,0.00016438,2]
[323782132,1714289447467,-500.0,0.00016438,2]
[323782133,1714289447476,-6424.52,0.00016438,2]
[323782134,1714289447486,-525.7,0.00016438,2]
[323782135,1714289447495,-500.0,0.00016438,2]
[323782136,1714289447505,-500.0,0.00016438,2]
[323782137,1714289447515,-501.35755734,0.00016438,2]
[323782138,1714289447524,-500.0,0.00016438,2]
[323782139,1714289447534,-2599.31,0.00016438,2]
[323782140,1714289447544,-601.18,0.00016438,2]
[323782141,1714289447553,-11542.99830024,0.00016438,2]
[323782142,1714289448211,-35237.81169976,0.00016438,2]
[323782143,1714289448222,-500.0,0.00016438,2]
[323782144,1714289448233,-506.89538761,0.00016438,2]
[323782145,1714289448245,-501.17830535,0.00016438,2]
[323782146,1714289448474,-333.3579789,0.00016438,2]
[323782147,1714289448497,-500.0,0.00016438,2]
[323782148,1714289448507,-500.0,0.00016438,2]
[323782149,1714289448517,-500.0,0.00016438,2]
[323782150,1714289448526,-515.8,0.00016438,2]
[323782151,1714289448535,-593.53467167,0.00016438,2]
[323782152,1714289448545,-557.91,0.00016438,2]
[323782153,1714289448554,-4319.84,0.00016438,2]
[323782154,1714289448563,-1478.15,0.00016438,2]
[323782155,1714289448572,-3850.16,0.00016438,2]
[323782156,1714289448582,-1054.38,0.00016438,2]
[323782157,1714289448592,-156.35517388,0.00016438,2]
[323782158,1714289448602,-17655.75,0.00016438,2]
[323782159,1714289448612,-548.47,0.00016438,2]
[323782160,1714289448622,-499.72326719,0.00016438,2]
[323782161,1714289448631,-500.0,0.00016438,2]
[323782162,1714289448641,-500.0,0.00016438,2]
[323782163,1714289448651,-500.0,0.00016438,2]
[323782164,1714289448661,-582.25,0.00016438,2]
[323782165,1714289448672,-996.38,0.00016438,2]
[323782166,1714289448681,-542.33,0.00016438,2]
[323782167,1714289448691,-602.17,0.00016438,2]
[323782168,1714289448700,-4143.23,0.00016438,2]
[323782169,1714289448710,-1179.22,0.00016438,2]
[323782170,1714289448720,-500.0,0.00016438,2]
[323782171,1714289448729,-619.61,0.00016438,2]
[323782172,1714289448738,-2356.32,0.00016438,2]
[323782173,1714289448748,-1345.87,0.00016438,2]
[323782174,1714289448757,-500.0,0.00016438,2]
[323782175,1714289448768,-599.94,0.00016438,2]
[323782176,1714289448778,-2154.49,0.00016438,2]
[323782177,1714289448788,-500.0,0.00016438,2]
[323782178,1714289448797,-500.0,0.00016438,2]
[323782179,1714289448807,-1332.16,0.00016438,2]
[323782180,1714289448817,-1209.01,0.00016438,2]
[323782181,1714289448827,-231.97571966,0.00016438,2]
[323782182,1714289448836,-4267.91,0.00016438,2]
[323782183,1714289448845,-1337.6,0.00016438,2]
[323782184,1714289448855,-926.65,0.00016438,2]
[323782185,1714289448864,-500.0,0.00016438,2]
[323782186,1714289448875,-500.0,0.00016438,2]
[323782187,1714289448884,-500.0,0.00016438,2]
[323782188,1714289448894,-605.07,0.00016438,2]
[323782189,1714289448906,-7617.09,0.00016438,2]
[323782190,1714289448915,-517.1016,0.00016438,2]
[323782191,1714289448925,-500.0,0.00016438,2]
[323782192,1714289448936,-501.96638279,0.00016438,2]
[323782193,1714289448946,-500.0,0.00016438,2]
[323782194,1714289448959,-3413.38,0.00016438,2]
[323782195,1714289448970,-500.0,0.00016438,2]
[323782196,1714289448980,-492.36509798,0.00016438,2]
[323782197,1714289448990,-1653.38,0.00016438,2]
[323782198,1714289449001,-500.0,0.00016438,2]
[323782199,1714289449010,-1442.06,0.00016438,2]
[323782200,1714289449021,-591.92454351,0.00016438,2]
[323782201,1714289449031,-500.0,0.00016438,2]
[323782202,1714289449042,-1131.53,0.00016438,2]
[323782203,1714289449053,-501.89800626,0.00016438,2]
[323782204,1714289449062,-500.0,0.00016438,2]
[323782205,1714289449072,-500.0,0.00016438,2]
[323782206,1714289449082,-500.0,0.00016438,2]
[323782207,1714289449094,-1471.0,0.00016438,2]
[323782208,1714289449103,-780.71,0.00016438,2]
[323782209,1714289449113,-500.0,0.00016438,2]
[323782210,1714289449124,-500.0,0.00016438,2]
[323782211,1714289449135,-500.0,0.00016438,2]
[323782212,1714289449145,-500.0,0.00016438,2]
[323782213,1714289449154,-28388.08,0.00016438,2]
[323782214,1714289449164,-1803.04,0.00016438,2]
[323782215,1714289449174,-2561.03,0.00016438,2]
[323782216,1714289449183,-5521.36,0.00016438,2]
[323782217,1714289449194,-500.0,0.00016438,2]
[323782218,1714289449204,-500.0,0.00016438,2]
[323782219,1714289449214,-500.0,0.00016438,2]
[323782220,1714289449224,-500.0,0.00016438,2]
[323782221,1714289449234,-500.0,0.00016438,2]
[323782222,1714289449244,-2401.1,0.00016438,2]
[323782223,1714289449254,-1631.73,0.00016438,2]
[323782224,1714289449264,-65110.37,0.00016438,2]
[323782225,1714289449274,-2080.19,0.00016438,2]
[323782226,1714289449284,-600.97,0.00016438,2]
[323782227,1714289449295,-500.0,0.00016438,2]
[323782228,1714289449305,-1528.26,0.00016438,2]
[323782229,1714289449316,-4529.35,0.00016438,2]
[323782230,1714289449327,-500.0,0.00016438,2]
[323782231,1714289449339,-500.0,0.00016438,2]
[323782232,1714289449349,-2371.43,0.00016438,2]
[323782233,1714289449363,-2556.34,0.00016438,2]
[323782234,1714289449375,-669.24,0.00016438,2]
[323782235,1714289449385,-500.0,0.00016438,2]
[323782236,1714289449394,-500.0,0.00016438,2]
[323782237,1714289449405,-500.0,0.00016438,2]
[323782238,1714289449414,-500.0,0.00016438,2]
[323782239,1714289449425,-2287.68,0.00016438,2]
[323782240,1714289449436,-504.2737944,0.00016438,2]
[323782241,1714289449448,-522.78,0.00016438,2]
[323782242,1714289449460,-500.0,0.00016438,2]
[323782243,1714289449473,-1786.11,0.00016438,2]
[323782244,1714289449483,-4059.62,0.00016438,2]
[323782245,1714289449493,-1176.75,0.00016438,2]
[323782246,1714289449502,-1361.01,0.00016438,2]
[323782247,1714289449511,-676.19,0.00016438,2]
[323782248,1714289449521,-299.06745706,0.00016438,2]
[323782249,1714289449532,-500.0,0.00016438,2]
[323782250,1714289449543,-1353.75,0.00016438,2]
[323782251,1714289449553,-1502.84,0.00016438,2]
[323782252,1714289449562,-500.0,0.00016438,2]
[323782253,1714289449572,-2083.61,0.00016438,2]
[323782254,1714289449582,-2104.59,0.00016438,2]
[323782255,1714289449593,-1562.53,0.00016438,2]
[323782256,1714289449603,-500.0,0.00016438,2]
[323782257,1714289449612,-5459.35,0.00016438,2]
[323782258,1714289449622,-5459.35,0.00016438,2]
[323782259,1714289449632,-176.260858,0.00016438,2]
[323782260,1714289449641,-5459.35,0.00016438,2]
[323782261,1714289449652,-1258.51,0.00016438,2]
[323782262,1714289449662,-2467.54,0.00016438,2]
[323782263,1714289449671,-331.41026756,0.00016438,2]
[323782264,1714289449681,-500.0,0.00016438,2]
[323782265,1714289449691,-1152.05,0.00016438,2]
[323782266,1714289449700,-176.260858,0.00016438,2]
[323782267,1714289449709,-963.69,0.00016438,2]
[323782268,1714289449719,-500.0,0.00016438,2]
[323782269,1714289449731,-500.0,0.00016438,2]
[323782270,1714289449741,-500.0,0.00016438,2]
[323782271,1714289449752,-2169.77,0.00016438,2]
[323782272,1714289449761,-1605.12,0.00016438,2]
[323782273,1714289449772,-500.0,0.00016438,2]
[323782274,1714289449782,-2304.17,0.00016438,2]
[323782275,1714289449791,-2150.12,0.00016438,2]
[323782276,1714289449801,-523.84,0.00016438,2]
[323782277,1714289449810,-3459.86,0.00016438,2]
[323782278,1714289449820,-1113.98,0.00016438,2]
[323782279,1714289449829,-500.0,0.00016438,2]
[323782280,1714289449838,-500.0,0.00016438,2]
[323782281,1714289449847,-12566.0,0.00016438,2]
[323782282,1714289449857,-500.0,0.00016438,2]
[323782283,1714289449869,-500.0,0.00016438,2]
[323782284,1714289449879,-781.7,0.00016438,2]
[323782285,1714289449889,-1001.02,0.00016438,2]
[323782286,1714289449899,-1398.27,0.00016438,2]
[323782287,1714289449909,-500.0,0.00016438,2]
[323782288,1714289449920,-500.0,0.00016438,2]
[323782289,1714289449930,-652.74,0.00016438,2]
[323782290,1714289449942,-3366.14,0.00016438,2]
[323782291,1714289449952,-566.0,0.00016438,2]
[323782292,1714289449964,-500.0,0.00016438,2]
[323782293,1714289449974,-500.0,0.00016438,2]
[323782294,1714289449984,-868.77,0.00016438,2]
[323782295,1714289449994,-1059.08,0.00016438,2]
[323782296,1714289450003,-10297.18,0.00016438,2]
[323782297,1714289450014,-2747.42,0.00016438,2]
[323782298,1714289450023,-500.0,0.00016438,2]
[323782299,1714289450034,-1203.07,0.00016438,2]
[323782300,1714289450044,-8789.6,0.00016438,2]
[323782301,1714289450055,-500.0,0.00016438,2]
[323782302,1714289450064,-1142.22,0.00016438,2]
[323782303,1714289450073,-4314.8,0.00016438,2]
[323782304,1714289450083,-2128.5,0.00016438,2]
[323782305,1714289450092,-500.0,0.00016438,2]
[323782306,1714289450102,-500.0,0.00016438,2]
[323782307,1714289450111,-500.0,0.00016438,2]
[323782308,1714289450121,-4509.52,0.00016438,2]
[323782309,1714289450130,-3020.32,0.00016438,2]
[323782310,1714289450138,-500.0,0.00016438,2]
[323782311,1714289450148,-504.64977779,0.00016438,2]
[323782312,1714289450157,-500.0,0.00016438,2]
[323782313,1714289450166,-500.0,0.00016438,2]
[323782314,1714289450175,-1327.88,0.00016438,2]
[323782315,1714289450184,-500.0,0.00016438,2]
[323782316,1714289450194,-2857.71,0.00016438,2]
[323782317,1714289450203,-9543.92,0.00016438,2]
[323782318,1714289450212,-2488.99,0.00016438,2]
[323782319,1714289450221,-500.0,0.00016438,2]
[323782320,1714289450230,-2732.54,0.00016438,2]
[323782321,1714289450239,-1975.46,0.00016438,2]
[323782322,1714289450248,-500.0,0.00016438,2]
[323782323,1714289450257,-1040.77,0.00016438,2]
[323782324,1714289450267,-546.79,0.00016438,2]
[323782325,1714289450276,-1253.31,0.00016438,2]
[323782326,1714289450285,-500.0,0.00016438,2]
[323782327,1714289450294,-500.0,0.00016438,2]
[323782328,1714289450303,-1553.84,0.00016438,2]
[323782329,1714289450313,-1680.13,0.00016438,2]
[323782330,1714289450322,-732.75,0.00016438,2]
[323782331,1714289450332,-45104.11,0.00016438,2]
[323782332,1714289450341,-500.0,0.00016438,2]
[323782333,1714289450351,-500.0,0.00016438,2]
[323782334,1714289450362,-500.0,0.00016438,2]
[323782335,1714289450372,-591.45,0.00016438,2]
[323782336,1714289450382,-500.0,0.00016438,2]
[323782337,1714289450391,-2511.79,0.00016438,2]
[323782338,1714289450400,-308.30007474,0.00016438,2]
[323782339,1714289450419,-545.03939917,0.00016438,2]
[323782340,1714289450434,-1326.57052609,0.00016438,2]
[323782341,1714289450444,-500.0,0.00016438,2]
[323782342,1714289450454,-1199.48,0.00016438,2]
[323782343,1714289450464,-500.0,0.00016438,2]
[323782344,1714289450474,-2051.44,0.00016438,2]
[323782345,1714289450484,-2366.7,0.00016438,2]
[323782346,1714289450495,-1813.16,0.00016438,2]
[323782347,1714289450504,-500.0,0.00016438,2]
[323782348,1714289450514,-1589.07,0.00016438,2]
[323782349,1714289450525,-500.0,0.00016438,2]
[323782350,1714289450535,-500.0,0.00016438,2]
[323782351,1714289450545,-500.0,0.00016438,2]
[323782352,1714289450555,-500.0,0.00016438,2]
[323782353,1714289450565,-1501.66,0.00016438,2]
[323782354,1714289450574,-78.36195355,0.00016438,2]
[323782355,1714289450622,-421.63804645,0.00016438,2]
[323782356,1714289450632,-1638.27,0.00016438,2]
[323782357,1714289450642,-1654.63561562,0.00016438,2]
[323782358,1714289450655,-705.281867,0.00016438,2]
[323782359,1714289450668,-4432.56251738,0.00016438,2]
[323782360,1714289450677,-15692.05,0.00016438,2]
[323782361,1714289450687,-1725.41,0.00016438,2]
[323782362,1714289450697,-3198.82,0.00016438,2]
[323782363,1714289450706,-690.14,0.00016438,2]
[323782364,1714289450716,-500.0,0.00016438,2]
[323782365,1714289450726,-4651.98,0.00016438,2]
[323782366,1714289450736,-500.0,0.00016438,2]
[323782367,1714289450746,-500.0,0.00016438,2]
[323782368,1714289450755,-6582.87,0.00016438,2]
[323782369,1714289450765,-1987.96,0.00016438,2]
[323782370,1714289450774,-500.0,0.00016438,2]
[323782371,1714289450784,-1597.25,0.00016438,2]
[323782372,1714289450794,-500.0,0.00016438,2]
[323782373,1714289450804,-2717.02,0.00016438,2]
[323782374,1714289450814,-503.21458073,0.00016438,2]
[323782375,1714289450823,-760.06,0.00016438,2]
[323782376,1714289450833,-2815.37,0.00016438,2]
[323782377,1714289450843,-2939.95,0.00016438,2]
[323782378,1714289450853,-950.49,0.00016438,2]
[323782379,1714289450863,-1862.7,0.00016438,2]
[323782380,1714289450874,-500.0,0.00016438,2]
[323782381,1714289450884,-1261.42,0.00016438,2]
[323782382,1714289450895,-2912.29,0.00016438,2]
[323782383,1714289450906,-933.07,0.00016438,2]
[323782384,1714289450916,-756.1,0.00016438,2]
[323782385,1714289450926,-151.0,0.00016438,2]
[323782386,1714289450938,-500.0,0.00016438,2]
[323782387,1714289450949,-151.0,0.00016438,2]
[323782388,1714289450958,-534.21,0.00016438,2]
[323782389,1714289450967,-500.0,0.00016438,2]
[323782390,1714289450976,-326.35828829,0.00016438,2]
[323782391,1714289451003,-173.64171171,0.00016438,2]
[323782392,1714289451013,-194.76172689,0.00016438,2]
[323782393,1714289451026,-305.23827311,0.00016438,2]
[323782394,1714289451035,-507.27539956,0.00016438,2]
[323782395,1714289451044,-1245.34,0.00016438,2]
[323782396,1714289451053,-2511.58,0.00016438,2]
[323782397,1714289451062,-8043.92802008,0.00016438,2]
[323782398,1714289451073,-1171.11856861,0.00016438,2]
[323782399,1714289452620,-586.93547672,0.00016438,2]
[323782400,1714289452637,-765.79793459,0.00016438,2]
[323782401,1714289452647,-897.51,0.00016438,2]
[323782402,1714289452657,-1515.15706601,0.00016438,2]
[323782403,1714289452676,-409.90293399,0.00016438,2]
[323782404,1714289452685,-1887.35758601,0.00016438,2]
[323782405,1714289453262,-354.20748585,0.00016437,2]
[323782406,1714289453272,-2614.0307522,0.00016438,2]
[323782407,1714289453296,-225.20166179,0.00016438,2]
[323782408,1714289453306,-276.44449255,0.00016438,2]
[323782409,1714289453340,-513.99129429,0.00016438,2]
[323782410,1714289453367,-669.63421316,0.00016438,2]
[323782411,1714289453377,-1048.29,0.00016438,2]
[323782412,1714289453387,-500.0,0.00016438,2]
[323782413,1714289453396,-1116.79,0.00016438,2]
[323782414,1714289453405,-500.0,0.00016438,2]